Cogmind - Beta 14 @@@ ROGUE MODE // 2024.08.12 @ 22:38:51 Player: Jammed Result: Destroyed by G-34 Mercenary with Small Laser Performance ------------- Evolutions (0) 0 Regions Visited (2) 400 Robots Destroyed (28) 140 Value Destroyed (511) 511 Prototype IDs (0) 0 Alien Tech Used (0) 0 Bonus (0) 0 TOTAL SCORE: 1051 Bonus ------- None Cogmind --------- Core Integrity 0/250 Matter 278/300 Energy 36/100 System Corruption 0% Temperature Cool (6) Movement Treading (240) Ox1 Location -10/Mines Parts ------- > --- POWER (1) -------- (None) > --- PROPULSION (2) --- Light Treads Light Treads > --- UTILITY (2) ------ High-capacity Storage Unit Light Armor Plating > --- WEAPON (2) ------- Light Assault Rifle Light Assault Rifle > --- INVENTORY (20) --- Light Treads Light Treads Light Treads High-capacity Matter Pod (200) Signal Interpreter Signal Interpreter Seismic Detector Seismic Detector Light Armor Plating Light Armor Plating Small Laser Small Laser Light Assault Rifle Grenade Launcher Mining Laser Peak State ------------ > --- POWER ------------ Light Ion Engine > --- PROPULSION ------- Aluminum Leg Aluminum Leg > --- UTILITY ---------- High-capacity Storage Unit Seismic Detector > --- WEAPON ----------- Assault Rifle Light Assault Rifle > --- INVENTORY -------- Light Ion Engine Light Treads Light Treads Light Treads Light Treads High-capacity Matter Pod Small Laser Small Laser Grenade Launcher Mining Laser [Rating: 8] Favorites ----------- Power Light Ion Engine Engine Light Ion Engine Propulsion Aluminum Leg Treads Light Treads Leg Aluminum Leg Utility Seismic Detector Device Seismic Detector Storage High-capacity Storage Unit Protection Light Armor Plating Weapon Assault Rifle Energy Gun Small Laser Ballistic Gun Assault Rifle Special Weapon Mining Laser Build | -11 -10 -10 ------- Run | Yrd Mat Min Slots Evolved . | . . . Power . | . . . Propulsion . | . . . Utility . | . . . Weapon . | . . . Parts Attached 19 | 2 6 11 Power 1 | . 1 . Engine 1 | . 1 . Core . | . . . Reactor . | . . . Propulsion 2 | . . 2 Treads 2 | . . 2 Leg . | . . . Wheel . | . . . Hover . | . . . Flight . | . . . Utility 4 | 1 2 1 Device 1 | 1 . . Storage 2 | . 2 . Processor . | . . . Hackware . | . . . Protection 1 | . . 1 Artifact . | . . . Weapon 12 | 1 3 8 Energy Gun . | . . . Energy Cannon . | . . . Ballistic Gun 8 | 1 2 5 Ballistic Cannon . | . . . Launcher . | . . . Special Weapon 4 | . 1 3 Impact Weapon . | . . . Slashing Weapon . | . . . Piercing Weapon . | . . . Special Melee Weapon . | . . . Unidentified Prototypes . | . . . Parts Lost 4 | . . 4 Power 1 | . . 1 Propulsion 1 | . . 1 Utility . | . . . Weapon 2 | . . 2 Highest Loss Streak 1 | . . 1 To Critical Strikes . | . . . Average Slot Usage (%) 97 | . 99 93 Engine 12 | . 14 8 Treads 9 | . . 26 Leg 18 | . 28 1 Device 13 | . 14 13 Storage 14 | . 14 14 Energy Gun 3 | . 5 . Ballistic Gun 23 | . 22 26 Peak Build Rating 8 | 7 8 8 Average Rating 7 | 6 7 7 On Entrance 7 | 6 7 8 Naked Turns . | . . . Heaviest Build 47 | 12 47 47 Greatest Support 40 | 20 20 40 Greatest Overweight (x) 2 | . 2 2 Average Overweight (x) 1 | . 1 1 Largest Inventory Capacity 20 | 8 20 20 Average Capacity 18 | 8 17 20 Most Carried 16 | 7 16 16 Average Carried 13 | 6 12 15 Final Capacity 20 | 8 20 20 Final Carried 16 | 7 16 15 Class Distribution -------------------- 66% | Mutant 33% | Scavenger-Mutant Dominant Class ---------------- Mutant | -10/Materials Scavenger-Mutant | -10/Mines Resources | -11 -10 -10 ----------- Run | Yrd Mat Min Matter Collected 843 | 250 265 328 Remotely . | . . . Salvage Created 835 | 132 449 254 Parts 53 | 7 30 16 Haulers Intercepted 2 | . 2 . Recyclers Shooed 1 | . 1 . Parts Field Recycled . | . . . Retrieved Matter . | . . . Parts Self-Destructed . | . . . Prevented . | . . . Kills | -11 -10 -10 ------- Run | Yrd Mat Min Combat Hostiles Destroyed 21 | . 11 10 Guns 21 | . 11 10 Classes Destroyed 8 | 2 5 1 Tunneler 3 | 3 . . Hauler 2 | . 2 . Recycler 1 | 1 . . Operator 1 | . 1 . Watcher 2 | . 2 . Swarmer 10 | . 6 4 Grunt 9 | . 5 4 Assembled 2 | . . 2 Best Kill Streak 3 | 3 3 2 Combat Bots Only 3 | . 3 2 Max Kills in Single Turn 1 | 1 1 1 Gunslinging . | . . . Exploded . | . . . Melee . | . . . Uniques/NPCs Destroyed . | . . . Combat | -11 -10 -10 -------- Run | Yrd Mat Min Hostile Shots Fired 137 | . 54 83 Missed 34 | . 14 20 Damage Taken 1021 | . 380 641 Core 256 | . 77 179 Absorbed by Shields . | . . . Regen/Repaired (Parts) 87 | . 87 . Core Remaining (%) 100 | 100 . . Volleys Fired 110 | 10 46 54 Largest 2 | 2 2 2 Hottest 100 | 60 100 100 Shots Fired 205 | 20 90 95 Gun 191 | 20 88 83 Cannon . | . . . Launcher . | . . . Special 14 | . 2 12 Kinetic 144 | 10 51 83 Thermal 61 | 10 39 12 Explosive . | . . . Electromagnetic . | . . . Robot Hit Streak 12 | 4 12 9 Robot Miss Streak 3 | 2 3 3 Penetration Max . | . . . Secondary Targets 4 | . 2 2 Max Gunslinging Chain 1 | . 1 1 Shots Hit Robots 129 | 13 62 54 Core Hits 52 | 5 27 20 Critical Kills . | . . . Critical Parts Destroyed 1 | . 1 . Critical Strikes 1 | . 1 . Destroy 1 | . 1 . Melee Attacks . | . . . Impact . | . . . Slashing . | . . . Piercing . | . . . Sneak Attacks . | . . . Combat Hostiles . | . . . Follow-up Attacks . | . . . Damage Inflicted 1397 | 160 723 514 Guns 1394 | 160 720 514 Cannons . | . . . Explosions . | . . . Melee . | . . . Ramming 3 | . 3 . Kinetic 1007 | 86 407 514 Thermal 387 | 74 313 . Explosive . | . . . Electromagnetic . | . . . Impact . | . . . Slashing . | . . . Piercing . | . . . Highest Corruption . | . . . Average Corruption . | . . . Corruption Purged . | . . . Corruption Blocked . | . . . Overload Shots . | . . . Overflow Damage . | . . . Projectiles . | . . . Explosions . | . . . Melee . | . . . Knockbacks . | . . . Impact . | . . . Kinetic . | . . . Secondary . | . . . Self-Inflicted Damage . | . . . Shots . | . . . Rammed . | . . . Targets Rammed 3 | . 3 . Kicked 3 | . 3 . Crushed . | . . . Highest Temperature 36 | . 36 27 Average Temperature 15 | . 17 11 Received Heat Transfer 249 | . 132 117 Siege Activations . | . . . Robots Corrupted . | . . . Combat Hostiles . | . . . Parts Fried . | . . . Impact Corruptions . | . . . Robots Melted . | . . . Combat Hostiles . | . . . Parts Melted . | . . . Heat Transferred 875 | 175 700 . Parts Sabotaged . | . . . Parts Stolen . | . . . Parts Stripped . | . . . Power Chain Reactions . | . . . Alert | -11 -10 -10 ------- Run | Yrd Mat Min Peak Influence 265 | 20 265 94 Initial 14 | . 13 14 Average 52 | 8 68 28 Maximum Alert Level 1 | . 1 . Low Security (%) 99 | 100 99 100 Level 1 . | . . . Level 2 . | . . . Level 3 . | . . . Level 4 . | . . . Level 5 . | . . . High Security . | . . . Max Security . | . . . Squads Dispatched 3 | . 3 . Investigation 3 | . 3 . Extermination . | . . . Reinforcement . | . . . Assault . | . . . Garrison . | . . . Intercept . | . . . Searches Triggered . | . . . Construction Impeded . | . . . Haulers Reinforced . | . . . Active Scanning Responses . | . . . Cargo Convoy Interrupts . | . . . Stealth | -11 -10 -10 --------- Run | Yrd Mat Min Distress Signals . | . . . Communications Jammed . | . . . Distress Signals . | . . . Times Spotted 33 | . 20 13 Peak Tracking Total 4 | . 4 3 Tactical Retreats 2 | . 1 1 Traps | -11 -10 -10 ------- Run | Yrd Mat Min Traps Triggered 1 | . 1 . Indirectly . | . . . Trap Hack Attempts . | . . . Triggered . | . . . Disarmed 2 | . 2 . Reprogrammed . | . . . Reused . | . . . Traps Extracted . | . . . Installed . | . . . Triggered . | . . . Machines | -11 -10 -10 ---------- Run | Yrd Mat Min Machines Disabled . | . . . Max in Single Turn . | . . . Machines Repaired . | . . . Machines Dismantled . | . . . Machines Sabotaged . | . . . Overloaded Fab Kills . | . . . Hacking | -11 -10 -10 --------- Run | Yrd Mat Min Machines Accessed 10 | . 10 . Terminals 7 | . 7 . Fabricators . | . . . Repair Stations 1 | . 1 . Recycling Units 2 | . 2 . Scanalyzers . | . . . Garrison Access . | . . . Total Hacks 30 | . 30 . Successful 22 | . 22 . Failed 7 | . 7 . Catastrophic . | . . . Database Lockouts 1 | . 1 . Manual 15 | . 15 . Terminals 23 | . 23 . Fabricators . | . . . Repair Stations 3 | . 3 . Recycling Units 4 | . 4 . Scanalyzers . | . . . Garrison Access . | . . . Terminal Hacks 14 | . 14 . Part Schematic 1 | . 1 . Robot Analysis 5 | . 5 . Alert Level 1 | . 1 . Locate Traps 3 | . 3 . Disarm Traps 1 | . 1 . Hauler Manifests 1 | . 1 . Zone Layout 2 | . 2 . Fabricator Hacks . | . . . Repair Station Hacks 2 | . 2 . Scan Component 1 | . 1 . Repair 1 | . 1 . Recycling Unit Hacks 2 | . 2 . Report Inventory 2 | . 2 . Scanalyzer . | . . . Garrison Access Hacks . | . . . Unauthorized Hacks 4 | . 4 . Terminals 2 | . 2 . Botnet 1 | . 1 . Operators 1 | . 1 . Fabricators . | . . . Repair Stations . | . . . Recycling Units 2 | . 2 . Tunnel 2 | . 2 . Scanalyzers . | . . . Garrison Access . | . . . Data Cores Recovered 1 | . 1 . Used . | . . . Hacking Detections 6 | . 6 . Full Trace Events . | . . . Feedback Events . | . . . Feedback Blocked . | . . . Robot Schematics Acquired . | . . . Robots Built . | . . . Authchips . | . . . Time . | . . . Total Robot Build Rating . | . . . Part Schematics Acquired 1 | . 1 . Parts Built . | . . . Authchips . | . . . Time . | . . . Total Part Build Rating . | . . . Parts Repaired 1 | . 1 . Time 26 | . 26 . Parts Recycled . | . . . Recycled Matter . | . . . Retrieved Matter . | . . . Retrieved Components . | . . . Parts Scanalyzed . | . . . Part Schematics Acquired . | . . . Parts Damaged . | . . . Bothacking | -11 -10 -10 ------------ Run | Yrd Mat Min Used RIF Installer . | . . . Robots Hacked . | . . . Non-combat . | . . . Combat . | . . . Robot Hacks Applied . | . . . Relay Couplers Released . | . . . Fabnet Peak Effective % . | . . . Robots Rewired . | . . . Allies Hacked . | . . . Hacks Repelled . | . . . Allies | -11 -10 -10 -------- Run | Yrd Mat Min Total Allies . | . . . Largest Group . | . . . Highest-Rated Group . | . . . Highest-Rated Ally . | . . . Total Orders . | . . . Ally Attacks . | . . . Total Damage . | . . . Kills . | . . . Allies Corrupted . | . . . Allies Melted . | . . . Intel | -11 -10 -10 ------- Run | Yrd Mat Min Robot Analysis Total 5 | . 5 . Derelict Logs Recovered 1 | . . 1 Drone Launches . | . . . Drone Recoveries . | . . . Exploration | -11 -10 -10 ------------- Run | Yrd Mat Min Turns Passed 2930 | 74 1826 1030 Spaces Moved 1064 | 33 712 319 Core . | . . . Treads 307 | . . 307 Legs 757 | 33 712 12 Wheels . | . . . Hover . | . . . Flight . | . . . Fastest Speed 120 | 120 120 240 Average Speed 221 | 120 216 240 Slowest Speed 260 | 120 260 260 Overloaded Moves . | . . . Propulsion Burnouts . | . . . Robots Hopped . | . . . Cave-ins Triggered . | . . . Exploration Rate (%) 50 | 3 96 52 Regions Visited 2 Branch Regions 1 Pre-discovered Areas 3 | . 2 1 Known Exits Taken . | . . . Unknown Exits Taken 2 | 1 1 . Scrap Searched 1 | . . 1 Spaces Dug 3 | . 2 1 Terrain Destroyed 5 | . 2 3 Melee . | . . . Projectile 5 | . 2 3 AOE . | . . . Terrain Rammed . | . . . Walls Destroyed . | . . . Machines Disabled . | . . . Actions | -11 -10 -10 --------- Run | Yrd Mat Min Total 1416 | 46 898 472 Wait 201 | 1 115 85 Move 1062 | 32 711 319 Hop . | . . . Pick Up 15 | 1 12 2 Fast Attach 3 | 1 1 1 Attach 4 | . 1 3 Detach . | . . . Swap 12 | 1 4 7 Drop 6 | . 5 1 Fire 110 | 10 46 54 Melee . | . . . Ram . | . . . Kick 3 | . 3 . Crush . | . . . Escape Stasis . | . . . Rewire . | . . . Trap . | . . . Miscellaneous . | . . . Route ------- -11/Scrapyard -10/Materials (discovered 4 exits: [*Mat x3] / [*Min]) -10/Mines (discovered 3 exits: [*Mat x2] / [*Exi]) History --------- Turn | Location | Event 22 | -11/Scrapyard | Discovered new exit (range 3) 75 | -11/Scrapyard | Entered Materials 317 | -10/Materials | Build established: Mutant 450 | -10/Materials | Discovered new exit (range 3) 746 | -10/Materials | Discovered new exit (range 3) 923 | -10/Materials | Discovered new exit (range 7) 1047 | -10/Materials | Discovered new exit (range 15) 1094 | -10/Materials | Central database locked down 1558 | -10/Materials | Repaired Assault Rifle 1901 | -10/Materials | Entered Mines 1959 | -10/Mines | Core integrity fell below 50% 2159 | -10/Mines | Deemed a non-threat by the Exiles lab entrance 2159 | -10/Mines | Discovered new exit (range 5) 2253 | -10/Mines | Discovered new exit (range 10) 2274 | -10/Mines | Build established: Scavenger-Mutant 2586 | -10/Mines | Discovered new exit (range 8) 2744 | -10/Mines | Excavation squad dispatched 2744 | -10/Mines | A large section of the Mines collapsed 2838 | -10/Mines | Core integrity fell below 20% 2931 | -10/Mines | Destroyed by G-34 Mercenary with Small Laser Last Messages --------------- 02750_ as-59198 destroyed. 02752_ Acquired 10 matter. 02756_ Acquired 7 matter. 02844_ as-44193 destroyed. 02846_ Acquired 20 matter. 02851_ Acquired Seismic Detector. 02856_ Acquired 5 matter. 02895_ T-07 Excavator is excavating. 02896_ Lgt. Assault Rifle destroyed. 02899_ G-34 Mercenary destroyed. 02899_ T-07 Excavator is excavating. 02901_ Acquired 43 matter. 02904_ Acquired 2 matter. 02904_ T-07 Excavator is excavating. 02919_ U-05 Engineer lays Concrete. 02927_ T-07 Excavator is excavating. 02929_ U-05 Engineer lays Concrete. 02930_ U-05 Engineer builds a Wall. 02930_ U-05 Engineer lays Concrete. 02931_ G-34 Mercenary destroyed. Map ----- +----------------------------------------------------+ | | | | | | | | | | | | | ?????????????????????????????????????????????? | | ?????????????????????????????????????????????? | | ?????????????????????????????????????????????? | | ????????????????????????????????###??????????? | | ??????????????????????????????### ####??????? | | ?????????????????????????????? #??????? | | ??????????????????????????????? ??????? | | ??????????????????????????????? ???????? | | ??????????????????????????????? ???????? | | ???????????????????????????????? ???????? | | ???????????????????????????????? ????????? | | ????????????????????????####????# ????????? | | ???? ???????????????# ##???? #????????? | | ??? ??????????## ; ##??? ##???????? | | ??? ######## #???# ##??????? | | ??? !% ; ; #???# #??????? | | ??? !|! g* = ######## #??????? | | ??? ########t u% # " # #??????? | | ???? ????????## #;# ########??????? | | ???? #??????????#@[##"########???????? | | ????? ????????????#%#####??????????????? | | ????? ?????????????#t#??????????????????? | | ?????# ???????######### #??????????????????? | | ?????? #????????# #??????????????????? | | ????????????????# #########??????????????????? | | ????????????????# #??????????????????????????? | | ????????????????# #????###???????????????????? | | ????????????????# #??## #????##?????????????? | | #### ######???# #### #???## #????????????? | | ?? ##### #???# ####????????? | | ?????????# =%= ! ##??# ##???????? | | ?????????# *###### ! ##?# #???????? | | ?????????# #????# ! #??# #???????? | | ?????????# #????# ! #??## ##???????? | | ?????????# ###??# ##???## ##???????? | | ?????##### ##?##### ##?????## #???????? | | ?????# #?????## ##??????## #???????? | | ????# < #??????# ######### ##???????? | | ????# ### #??????# ########???? | | ????## #???###?????## """ #???? | | ?????## #????????????# """ #???? | | ??????# ?????????????# """ ###### #???? | | ??????# ?????????????# ##????# #???? | | ??????#??????????????# ####?????# ##??? | +----------------------------------------------------+ Best States ------------- Heat Dissipation 25 Energy Generation 10 Energy Capacity 125 Matter Stores 300 Matter Capacity 300 Sight Range 16 Terrain Scan Density 10 Armor Coverage 150 Evasion (%) 55 Recoil Reduction 2 Item Schematics ----------------- Hcp. Storage Unit | -10/Materials | Hacked Robot Schematics ------------------ None Fabricated ------------ Nothing Alien Tech Used ----------------- None Achievements -------------- None Challenges ------------ None Game ------ Seed CryofiberBoreCycler Manual? 0 Play Time 00:15:29 Cumulative 192.0 hours Start 2024.08.12 @ 22:26:55 End 2024.08.12 @ 22:38:51 Sessions 1 Manual Loads 0 Difficulty Rogue Special Mode None Game No. 126 Rogue 126 Adventurer 0 Explorer 0 Win Type - Total 2 Types 1/0/0/1/0/0/0/0/0 Lore% 63 Gallery% 59 Achievement% 58 Wizard Run 0 Options --------- Layout 0 ASCII 0 Keyboard 0 Movement Mouse Keybinds 0 Fullscreen 1 Font 18/SmallcapsGlow Map View 76x50 Zoom Use 0% Tactical HUD 1 Map Filters NONE Filters NONE Steam 1 RUN: 5cf02a63-06a7-4003-ace1-b1a184525f55